Body,Body Name,Date,TransNo,Amount � (Excl VAT),Supplier name,Description,Expense Area,Expense Type,Expense Code,
http://opendatacommunities.org/id/london-borough-council/sutton,London Borough of Sutton,23/02/2022,10005903,46.93, FACEBK VNYWUCTAL2,SPLIT - ADS - NOT ALONE IN SUTTON (50%),Peoples Services,Publicity,A44266,
http://opendatacommunities.org/id/london-borough-council/sutton,London Borough of Sutton,01/02/2022,10005903,2.12, GOOGLE ADS8517410550,ADS - NOT ALONE IN SUTTON,Peoples Services,Publicity,A44266,
http://opendatacommunities.org/id/london-borough-council/sutton,London Borough of Sutton,10/02/2022,10005903,14.13, AMAZON.CO.UK 2L5J68EP4,TOYS & EQUIPMENT,Health and Wellbeing,Equipment And Materials Purchase,A40000,
http://opendatacommunities.org/id/london-borough-council/sutton,London Borough of Sutton,04/02/2022,10005903,3.50, THE RANGE,TOYS,Health and Wellbeing,Equipment And Materials Purchase,A40000,
http://opendatacommunities.org/id/london-borough-council/sutton,London Borough of Sutton,02/02/2022,10005903,3.00, ASDA STORES,TOYS & EQUIPMENT,Health and Wellbeing,Equipment And Materials Purchase,A40000,
http://opendatacommunities.org/id/london-borough-council/sutton,London Borough of Sutton,02/02/2022,10005903,7.48, TOY BARNHAUS,TOYS,Health and Wellbeing,Equipment And Materials Purchase,A40000,
http://opendatacommunities.org/id/london-borough-council/sutton,London Borough of Sutton,01/02/2022,10005903,217.67, WWW.PREMIERNETTING.CO.,FENCING,Health and Wellbeing,Equipment And Materials Purchase,A40000,
http://opendatacommunities.org/id/london-borough-council/sutton,London Borough of Sutton,31/01/2022,10005903,8.21, EBAY COMMERCE UK LTD,TOYS & EQUIPMENT,Health and Wellbeing,Equipment And Materials Purchase,A40000,
http://opendatacommunities.org/id/london-borough-council/sutton,London Borough of Sutton,29/01/2022,10005903,22.25, DUNELM LTD,TOYS & EQUIPMENT,Health and Wellbeing,Equipment And Materials Purchase,A40000,
http://opendatacommunities.org/id/london-borough-council/sutton,London Borough of Sutton,07/02/2022,10005903,55.98, WWW.STUDIO.CO.UK,TOYS AND EQUIPMENT,Health and Wellbeing,Equipment And Materials Purchase,A40000,
http://opendatacommunities.org/id/london-borough-council/sutton,London Borough of Sutton,16/02/2022,10005903,16.99, AMZNMKTPLACE AMAZON.CO,TOYS & EQUIPMENT,Health and Wellbeing,Equipment And Materials Purchase,A40000,
http://opendatacommunities.org/id/london-borough-council/sutton,London Borough of Sutton,24/02/2022,10005903,12.22, ARGOS LTD,TOYS,Health and Wellbeing,Equipment And Materials Purchase,A40000,
http://opendatacommunities.org/id/london-borough-council/sutton,London Borough of Sutton,24/02/2022,10005903,8.07, AMZNMKTPLACE AMAZON.CO,TOYS,Health and Wellbeing,Equipment And Materials Purchase,A40000,
http://opendatacommunities.org/id/london-borough-council/sutton,London Borough of Sutton,22/02/2022,10005903,9.99, TWINKL,TWINKL SUBSCRIPTION,Health and Wellbeing,Equipment And Materials Purchase,A40000,
http://opendatacommunities.org/id/london-borough-council/sutton,London Borough of Sutton,17/02/2022,10005903,6.89, AMAZON.CO.UK 2L2CQ1U44,TOYS & EQUIPMENT,Health and Wellbeing,Equipment And Materials Purchase,A40000,
http://opendatacommunities.org/id/london-borough-council/sutton,London Borough of Sutton,21/02/2022,10005903,102.08, SAINSBURYS.CO.UK,GROCERIES,Health and Wellbeing,Provisions,A41006,
http://opendatacommunities.org/id/london-borough-council/sutton,London Borough of Sutton,07/02/2022,10005903,3.40, ASDA SUPERSTORE,GROCERIES,Health and Wellbeing,Provisions,A41006,
http://opendatacommunities.org/id/london-borough-council/sutton,London Borough of Sutton,06/02/2022,10005903,23.22, TESCO STORE 3235,GROCERIES,Health and Wellbeing,Provisions,A41006,
http://opendatacommunities.org/id/london-borough-council/sutton,London Borough of Sutton,31/01/2022,10005903,85.88, SAINSBURYS.CO.UK,GROCERIES,Health and Wellbeing,Provisions,A41006,
http://opendatacommunities.org/id/london-borough-council/sutton,London Borough of Sutton,14/02/2022,10005903,60.51, SAINSBURYS.CO.UK,GROCERIES,Health and Wellbeing,Provisions,A41006,
http://opendatacommunities.org/id/london-borough-council/sutton,London Borough of Sutton,25/01/2022,10005903,23.68, SAINSBURYS S/MKTS,GROCERIES,Health and Wellbeing,Provisions,A41006,
http://opendatacommunities.org/id/london-borough-council/sutton,London Borough of Sutton,10/02/2022,10005903,95.00, UNIVERSITY OF SALFORD,"TRAINING - SOCIAL PRESCRIBING CONFERENCE  ""REDACTED - PERSONAL DATA""",Health and Wellbeing,Staff Development And Training,A15022,
http://opendatacommunities.org/id/london-borough-council/sutton,London Borough of Sutton,21/02/2022,10005903,8.23, EB  REFUND TO BUYER,EVENTBRITE REFUND,Health and Wellbeing,Equipment And Materials Purchase,A40000,
http://opendatacommunities.org/id/london-borough-council/sutton,London Borough of Sutton,16/02/2022,10005903,85.22, IZ  FALCONRY UK,EVENT FOR FEBRUARY HALF TERM,Health and Wellbeing,Equipment And Materials Purchase,A40000,
http://opendatacommunities.org/id/london-borough-council/sutton,London Borough of Sutton,08/02/2022,10005903,1.39, EB  REFUND TO BUYER,REFUND FOR EVENT,Health and Wellbeing,Equipment And Materials Purchase,A40000,
http://opendatacommunities.org/id/london-borough-council/sutton,London Borough of Sutton,16/02/2022,10005903,11.99, ROBERT DYAS HOLDNG LTD,KETTLE,Health and Wellbeing,PAT Testing,A40005,
http://opendatacommunities.org/id/london-borough-council/sutton,London Borough of Sutton,03/02/2022,10005903,8.32, SPOTIFY P199DEFFD3,MUSIC FOR CEREMONIES,Resources,Subscriptions,A47010,
http://opendatacommunities.org/id/london-borough-council/sutton,London Borough of Sutton,04/02/2022,10005903,1.50, ROYAL MAIL CHARGES,ROYAL MAIL - MCCD - THE SENDER DIDN'T PAY THE FULL POSTAGE,Resources,Miscellaneous Expenses,A49000,
http://opendatacommunities.org/id/london-borough-council/sutton,London Borough of Sutton,19/02/2022,10005903,7.08, SAINSBURYS S/MKTS,ANTI BAC WIPES AND BATTERIES,Resources,Miscellaneous Expenses,A49000,
http://opendatacommunities.org/id/london-borough-council/sutton,London Borough of Sutton,05/02/2022,10005903,15.33, WM MORRISONS STORE,DISHWASHER TABS AND TISSUES,Resources,Miscellaneous Expenses,A49000,
http://opendatacommunities.org/id/london-borough-council/sutton,London Borough of Sutton,08/02/2022,10005903,41.70, AMZNBUSINESS AD40R4U85,STAFF EQUIPMENT NEEDED (100%),Resources,Equipment And Materials Purchase,A40000,
http://opendatacommunities.org/id/london-borough-council/sutton,London Borough of Sutton,19/02/2022,10005903,5.16, PORTANT.CO,PORTANT - MONTHLY SUBSCRIPTION,Resources,Business Support Support,H10011,
http://opendatacommunities.org/id/london-borough-council/sutton,London Borough of Sutton,02/02/2022,10005903,45.83, PAYPAL  DIGITALINSP,MONTHLY SUBSCRIPTION FOR AUTOCRAT,Resources,Business Support Support,H10011,
http://opendatacommunities.org/id/london-borough-council/sutton,London Borough of Sutton,15/02/2022,10005903,48.22, SPARK ETAIL LIMITED,SANITARY PRODUCTS AS REQUESTED BY THE WOMEN'S NETWORK,Resources,Staff Side and Trade Union Activities,A15034,
http://opendatacommunities.org/id/london-borough-council/sutton,London Borough of Sutton,18/02/2022,10005903,182.40, EB  DIGITAL AND SOCIAL,SOCIAL MEDIA TRAINING FOR TEAM,Resources,Staff Development And Training,A15022,
http://opendatacommunities.org/id/london-borough-council/sutton,London Borough of Sutton,25/02/2022,10005903,88.14, CANVA  03338-19006201,SUBSCRIPTION,Resources,Equipment And Materials Purchase,A40000,
http://opendatacommunities.org/id/london-borough-council/sutton,London Borough of Sutton,25/02/2022,10005903,2.42, CANVA  03338-19006201,SUBSCRIPTION,Resources,Equipment And Materials Purchase,A40000,
http://opendatacommunities.org/id/london-borough-council/sutton,London Borough of Sutton,13/02/2022,10005903,37.50, AMZNBUSINESS 2L3DL6M14,SPLIT - MANFROTTO COMPACT LIGHT ALUMINIUM TRIPOD WITH BALL HEAD - BLACK (100%),Resources,Equipment And Materials Purchase,A40000,
http://opendatacommunities.org/id/london-borough-council/sutton,London Borough of Sutton,06/02/2022,10005903,16.62, AMZNBUSINESS WN5FT62F5,"SPLIT - MANFROTTO - MCPIXI UNIVERSAL SMARTPHONE CLAMP, PRO VERSION (100%)",Resources,Equipment And Materials Purchase,A40000,
http://opendatacommunities.org/id/london-borough-council/sutton,London Borough of Sutton,21/02/2022,10005903,-4.96, BSI STANDARDS LTD,REFUND,Resources,Publicity,A44266,
http://opendatacommunities.org/id/london-borough-council/sutton,London Borough of Sutton,23/02/2022,10005903,46.94, FACEBK VNYWUCTAL2,SPLIT - ADS - COMMUNITY AWARDS (50%),Resources,Publicity,A44266,
http://opendatacommunities.org/id/london-borough-council/sutton,London Borough of Sutton,14/02/2022,10005903,252.83, MAILCHIMP    MISC,MAILCHIMP SUBSCRIPTION,Resources,Publicity,A44266,
http://opendatacommunities.org/id/london-borough-council/sutton,London Borough of Sutton,14/02/2022,10005903,0.39, CLIPCHAMP.COM,CLIPCHAMP - VIDEO EDITING SUBSCRIPTION,Resources,Publicity,A44266,
http://opendatacommunities.org/id/london-borough-council/sutton,London Borough of Sutton,12/02/2022,10005903,11.72, CLIPCHAMP.COM,VIDEO EDITING SUBSCRIPTION,Resources,Publicity,A44266,
http://opendatacommunities.org/id/london-borough-council/sutton,London Borough of Sutton,03/02/2022,10005903,34.08, CHALLENGETROPHIES CO U,EXTRA TROPHY FOR SUTTON'S COMMUNITY AWARDS 2021,Resources,Publicity,A44266,
http://opendatacommunities.org/id/london-borough-council/sutton,London Borough of Sutton,19/02/2022,10005903,166.65, FACEBK J44VRCTAL2,SOCIAL MEDIA ADVERTS FOR FEBRUARY,Resources,Publicity,A44266,
http://opendatacommunities.org/id/london-borough-council/sutton,London Borough of Sutton,21/02/2022,10005903,203.86, MAILCHIMP,MAILCHIMP SUBSCRIPTION,Resources,Publicity,A44266,
http://opendatacommunities.org/id/london-borough-council/sutton,London Borough of Sutton,19/02/2022,10005903,13.87, TWITTER ONLINE ADS,SOCIAL MEDIA ADVERTS,Resources,Publicity,A44266,
http://opendatacommunities.org/id/london-borough-council/sutton,London Borough of Sutton,15/02/2022,10005903,8.34, MAILCHIMP    MISC,MAILCHIMP SUBSCRIPTION,Resources,Publicity,A44266,
http://opendatacommunities.org/id/london-borough-council/sutton,London Borough of Sutton,07/02/2022,10005903,199.99, ARGOS LTD,CL&G,Resources,"Grants, Contributions & Donations",A47005,
http://opendatacommunities.org/id/london-borough-council/sutton,London Borough of Sutton,07/02/2022,10005903,715.00, ARGOS LTD,CL&G,Resources,"Grants, Contributions & Donations",A47005,
http://opendatacommunities.org/id/london-borough-council/sutton,London Borough of Sutton,07/02/2022,10005903,199.99, ARGOS LTD,CL&G,Resources,"Grants, Contributions & Donations",A47005,
http://opendatacommunities.org/id/london-borough-council/sutton,London Borough of Sutton,04/02/2022,10005903,633.99, ARGOS LTD,CL&G,Resources,"Grants, Contributions & Donations",A47005,
http://opendatacommunities.org/id/london-borough-council/sutton,London Borough of Sutton,04/02/2022,10005903,385.00, ARGOS LTD,CL&G,Resources,"Grants, Contributions & Donations",A47005,
http://opendatacommunities.org/id/london-borough-council/sutton,London Borough of Sutton,21/02/2022,10005903,564.00, ARGOS LTD,CL&G,Resources,"Grants, Contributions & Donations",A47005,
http://opendatacommunities.org/id/london-borough-council/sutton,London Borough of Sutton,16/02/2022,10005903,309.00, CURRYS ONLINE,CL&G,Resources,"Grants, Contributions & Donations",A47005,
http://opendatacommunities.org/id/london-borough-council/sutton,London Borough of Sutton,11/02/2022,10005903,578.99, CURRYS ONLINE,CL&G,Resources,"Grants, Contributions & Donations",A47005,
http://opendatacommunities.org/id/london-borough-council/sutton,London Borough of Sutton,10/02/2022,10005903,159.00, ARGOS LTD,CL&G,Resources,"Grants, Contributions & Donations",A47005,
http://opendatacommunities.org/id/london-borough-council/sutton,London Borough of Sutton,23/02/2022,10005903,475.00, ARGOS LTD,CL&G,Resources,"Grants, Contributions & Donations",A47005,
http://opendatacommunities.org/id/london-borough-council/sutton,London Borough of Sutton,31/01/2022,10005903,337.95, ARGOS LTD,CL&G,Resources,"Grants, Contributions & Donations",A47005,
http://opendatacommunities.org/id/london-borough-council/sutton,London Borough of Sutton,27/01/2022,10005903,189.99, ARGOS LTD,CL&G,Resources,"Grants, Contributions & Donations",A47005,
http://opendatacommunities.org/id/london-borough-council/sutton,London Borough of Sutton,27/01/2022,10005903,179.99, ARGOS LTD,CL&G,Resources,"Grants, Contributions & Donations",A47005,
http://opendatacommunities.org/id/london-borough-council/sutton,London Borough of Sutton,26/01/2022,10005903,197.95, ARGOS LTD,CL&G,Resources,"Grants, Contributions & Donations",A47005,
http://opendatacommunities.org/id/london-borough-council/sutton,London Borough of Sutton,26/01/2022,10005903,324.00, CURRYS ONLINE,CL&G,Resources,"Grants, Contributions & Donations",A47005,
http://opendatacommunities.org/id/london-borough-council/sutton,London Borough of Sutton,25/01/2022,10005903,178.00, ARGOS LTD,CL&G,Resources,"Grants, Contributions & Donations",A47005,
http://opendatacommunities.org/id/london-borough-council/sutton,London Borough of Sutton,01/02/2022,10005903,533.94, ARGOS LTD,CL&G,Resources,"Grants, Contributions & Donations",A47005,
http://opendatacommunities.org/id/london-borough-council/sutton,London Borough of Sutton,25/01/2022,10005903,-6.95, ARGOS LTD,CL&G,Resources,"Grants, Contributions & Donations",A47005,
http://opendatacommunities.org/id/london-borough-council/sutton,London Borough of Sutton,25/01/2022,10005903,133.95, ARGOS LTD,CL&G,Resources,"Grants, Contributions & Donations",A47005,
http://opendatacommunities.org/id/london-borough-council/sutton,London Borough of Sutton,22/12/2021,10005903,-37.35, CURRYS ONLINE,CL&G,Resources,"Grants, Contributions & Donations",A47005,
http://opendatacommunities.org/id/london-borough-council/sutton,London Borough of Sutton,02/02/2022,10005903,623.95, ARGOS LTD,CL&G,Resources,"Grants, Contributions & Donations",A47005,
http://opendatacommunities.org/id/london-borough-council/sutton,London Borough of Sutton,01/02/2022,10005903,384.00, CURRYS ONLINE,CL&G,Resources,"Grants, Contributions & Donations",A47005,
http://opendatacommunities.org/id/london-borough-council/sutton,London Borough of Sutton,09/02/2022,10005903,518.99, CURRYS ONLINE,CL&G,Resources,"Grants, Contributions & Donations",A47005,
http://opendatacommunities.org/id/london-borough-council/sutton,London Borough of Sutton,09/02/2022,10005903,-518.99, CURRYS ONLINE,CL&G,Resources,"Grants, Contributions & Donations",A47005,
http://opendatacommunities.org/id/london-borough-council/sutton,London Borough of Sutton,07/02/2022,10005903,93.95, ARGOS LTD,CL&G,Resources,"Grants, Contributions & Donations",A47005,
http://opendatacommunities.org/id/london-borough-council/sutton,London Borough of Sutton,07/02/2022,10005903,270.00, ARGOS LTD,CL&G,Resources,"Grants, Contributions & Donations",A47005,
http://opendatacommunities.org/id/london-borough-council/sutton,London Borough of Sutton,03/02/2022,10005903,443.99, CURRYS ONLINE,CL&G,Resources,"Grants, Contributions & Donations",A47005,
http://opendatacommunities.org/id/london-borough-council/sutton,London Borough of Sutton,03/02/2022,10005903,-443.99, CURRYS ONLINE,CL&G,Resources,"Grants, Contributions & Donations",A47005,
http://opendatacommunities.org/id/london-borough-council/sutton,London Borough of Sutton,22/02/2022,10005903,681.95, ARGOS LTD,CL&G,Resources,"Grants, Contributions & Donations",A47005,
http://opendatacommunities.org/id/london-borough-council/sutton,London Borough of Sutton,22/02/2022,10005903,80.00, ARGOS LTD,CL&G,Resources,"Grants, Contributions & Donations",A47005,
http://opendatacommunities.org/id/london-borough-council/sutton,London Borough of Sutton,22/02/2022,10005903,"1,112.95", ARGOS LTD,CL&G,Resources,"Grants, Contributions & Donations",A47005,
http://opendatacommunities.org/id/london-borough-council/sutton,London Borough of Sutton,04/02/2022,10005903,370.00, ARGOS LTD,CL&G,Resources,"Grants, Contributions & Donations",A47005,
http://opendatacommunities.org/id/london-borough-council/sutton,London Borough of Sutton,04/02/2022,10005903,114.95, ARGOS LTD,CL&G,Resources,"Grants, Contributions & Donations",A47005,
http://opendatacommunities.org/id/london-borough-council/sutton,London Borough of Sutton,04/02/2022,10005903,-370.00, ARGOS LTD,CL&G,Resources,"Grants, Contributions & Donations",A47005,
http://opendatacommunities.org/id/london-borough-council/sutton,London Borough of Sutton,23/02/2022,10005903,523.99, CURRYS ONLINE,CL&G,Resources,"Grants, Contributions & Donations",A47005,
http://opendatacommunities.org/id/london-borough-council/sutton,London Borough of Sutton,23/02/2022,10005903,-241.95, ARGOS LTD,CL&G,Resources,"Grants, Contributions & Donations",A47005,
http://opendatacommunities.org/id/london-borough-council/sutton,London Borough of Sutton,23/02/2022,10005903,169.00, ARGOS LTD,CL&G,Resources,"Grants, Contributions & Donations",A47005,
http://opendatacommunities.org/id/london-borough-council/sutton,London Borough of Sutton,23/02/2022,10005903,-169.00, ARGOS LTD,CL&G,Resources,"Grants, Contributions & Donations",A47005,
http://opendatacommunities.org/id/london-borough-council/sutton,London Borough of Sutton,22/02/2022,10005903,219.00, ARGOS LTD,CL&G,Resources,"Grants, Contributions & Donations",A47005,
http://opendatacommunities.org/id/london-borough-council/sutton,London Borough of Sutton,22/02/2022,10005903,219.00, ARGOS LTD,CL&G,Resources,"Grants, Contributions & Donations",A47005,
http://opendatacommunities.org/id/london-borough-council/sutton,London Borough of Sutton,22/02/2022,10005903,219.00, ARGOS LTD,CL&G,Resources,"Grants, Contributions & Donations",A47005,
http://opendatacommunities.org/id/london-borough-council/sutton,London Borough of Sutton,24/02/2022,10005903,169.00, ARGOS LTD,CL&G,Resources,"Grants, Contributions & Donations",A47005,
http://opendatacommunities.org/id/london-borough-council/sutton,London Borough of Sutton,03/02/2022,10005903,173.95, ARGOS LTD,CL&G,Resources,"Grants, Contributions & Donations",A47005,
http://opendatacommunities.org/id/london-borough-council/sutton,London Borough of Sutton,03/02/2022,10005903,557.94, ARGOS LTD,CL&G,Resources,"Grants, Contributions & Donations",A47005,
http://opendatacommunities.org/id/london-borough-council/sutton,London Borough of Sutton,25/02/2022,10005903,240.00, ARGOS LTD,CL&G,Resources,"Grants, Contributions & Donations",A47005,
http://opendatacommunities.org/id/london-borough-council/sutton,London Borough of Sutton,25/02/2022,10005903,198.95, ARGOS LTD,CL&G,Resources,"Grants, Contributions & Donations",A47005,
http://opendatacommunities.org/id/london-borough-council/sutton,London Borough of Sutton,24/02/2022,10005903,249.95, ARGOS LTD,CL&G,Resources,"Grants, Contributions & Donations",A47005,
http://opendatacommunities.org/id/london-borough-council/sutton,London Borough of Sutton,23/02/2022,10005903,241.95, ARGOS LTD,CL&G,Resources,"Grants, Contributions & Donations",A47005,
http://opendatacommunities.org/id/london-borough-council/sutton,London Borough of Sutton,07/02/2022,10005903,203.95, ARGOS LTD,CL&G,Resources,"Grants, Contributions & Donations",A47005,
http://opendatacommunities.org/id/london-borough-council/sutton,London Borough of Sutton,07/02/2022,10005903,-160.00, ARGOS LTD,CL&G,Resources,"Grants, Contributions & Donations",A47005,
http://opendatacommunities.org/id/london-borough-council/sutton,London Borough of Sutton,24/02/2022,10005903,207.54, WWW.CPAG.ORG.UK,PURCHASE OF LEGISLATIVE BOOKS,Resources,Miscellaneous Expenses,A49000,
http://opendatacommunities.org/id/london-borough-council/sutton,London Borough of Sutton,24/02/2022,10005903,465.00, RICS COM GBP CYBS,RICS - VALUER REGISTRATION SCHEME 2022,Resources,Subscriptions,A47010,
http://opendatacommunities.org/id/london-borough-council/sutton,London Borough of Sutton,15/02/2022,10005903,652.08, AMZNMKTPLACE,SUPPLIES AND EQUIPMENT FOR THE LONDON CANCER HUB INNOVATION GATEWAY AS PER COLIN STONES EMAIL.,Resources,Contingency,A49001,
http://opendatacommunities.org/id/london-borough-council/sutton,London Borough of Sutton,22/02/2022,10005903,137.32, AMZNMKTPLACE AMAZON.CO,SUPPLIES AND EQUIPMENT FOR THE LONDON CANCER HUB INNOVATION GATEWAY AS PER COLIN STONES EMAIL.  PLEASE BE ADVISED ALL RECEIPTS ARE IN THE ABOVE TRANSACTION.,Resources,Contingency,A49001,
http://opendatacommunities.org/id/london-borough-council/sutton,London Borough of Sutton,07/02/2022,10005903,-21.00, LBSUTTON,LICENCING APPLICATION,Resources,Miscellaneous Expenses,A49000,
http://opendatacommunities.org/id/london-borough-council/sutton,London Borough of Sutton,07/02/2022,10005903,-21.00, LBSUTTON,LICENSING APPLICATION,Resources,Miscellaneous Expenses,A49000,
http://opendatacommunities.org/id/london-borough-council/sutton,London Borough of Sutton,13/02/2022,10005903,200.00, FACEBK WW34LCTAL2,OMICRON BUSINESS GRANTS ADS,Development Growth and Regeneration,Publicity,A44266,
http://opendatacommunities.org/id/london-borough-council/sutton,London Borough of Sutton,16/02/2022,10005903,443.00, MALMAISON,HOTEL BOOKING FOR 'REDACTED - PERSONAL DATA' ATTENDING THE UK REIIF EVENT 16 - 19 MAY 2022,Development Growth and Regeneration,Hotel Accomodation,A46010,
http://opendatacommunities.org/id/london-borough-council/sutton,London Borough of Sutton,16/02/2022,10005903,443.00, MALMAISON,HOTEL BOOKING FOR 'REDACTED - PERSONAL DATA' ATTENDING THE UK REIIF EVENT 16 - 19 MAY 2022,Development Growth and Regeneration,Hotel Accomodation,A46010,
http://opendatacommunities.org/id/london-borough-council/sutton,London Borough of Sutton,16/02/2022,10005903,443.00, MALMAISON,HOTEL BOOKING FOR 'REDACTED - PERSONAL DATA' ATTENDING THE UK REIIF EVENT 16 - 19 MAY 2022,Development Growth and Regeneration,Hotel Accomodation,A46010,
http://opendatacommunities.org/id/london-borough-council/sutton,London Borough of Sutton,14/02/2022,10005903,104.00, HOLIDAY INNS,HOTEL BOOKING FOR'REDACTED - PERSONAL DATA'ON 14.02.22,Development Growth and Regeneration,Hotel Accomodation,A46010,
http://opendatacommunities.org/id/london-borough-council/sutton,London Borough of Sutton,27/01/2022,10005903,319.99, ROBERT DYAS HOLDNG LTD,EMERGENCY PURCHASES FRO AFGHAN PROJECT,Environment Housing and Neighbourhoods,Furniture - Purchase,A40015,
http://opendatacommunities.org/id/london-borough-council/sutton,London Borough of Sutton,27/01/2022,10005903,212.94, ARGOS LTD,EMERGENCY PURCHASES FRO AFGHAN PROJECT,Environment Housing and Neighbourhoods,Furniture - Purchase,A40015,
http://opendatacommunities.org/id/london-borough-council/sutton,London Borough of Sutton,07/02/2022,10005903,94.95, ARGOS LTD,PURCHASES AFGHAN PROJECT,Environment Housing and Neighbourhoods,Furniture - Purchase,A40015,
http://opendatacommunities.org/id/london-borough-council/sutton,London Borough of Sutton,07/02/2022,10005903,15.98, AMZNMKTPLACE,PURCHASES AFGHAN PROJECT,Environment Housing and Neighbourhoods,Furniture - Purchase,A40015,
http://opendatacommunities.org/id/london-borough-council/sutton,London Borough of Sutton,24/02/2022,10005903,188.99, AMZNMKTPLACE,PURCHASES AFGHAN PROJECT,Environment Housing and Neighbourhoods,Furniture - Purchase,A40015,
http://opendatacommunities.org/id/london-borough-council/sutton,London Borough of Sutton,23/02/2022,10005903,53.05, ARGOS LTD,PURCHASES AFGHAN PROJECT,Environment Housing and Neighbourhoods,Furniture - Purchase,A40015,
http://opendatacommunities.org/id/london-borough-council/sutton,London Borough of Sutton,09/02/2022,10005903,10.90, ASDA STORES 4873,PURCHASES AFGHAN PROJECT,Environment Housing and Neighbourhoods,Furniture - Purchase,A40015,
http://opendatacommunities.org/id/london-borough-council/sutton,London Borough of Sutton,02/02/2022,10005903,318.75, IKEA LTD 144 CROYDON M,PURCHASES AFGHAN PROJECT,Environment Housing and Neighbourhoods,Furniture - Purchase,A40015,
http://opendatacommunities.org/id/london-borough-council/sutton,London Borough of Sutton,02/02/2022,10005903,427.17, DUNELM LTD,PURCHASES AFGHAN PROJECT,Environment Housing and Neighbourhoods,Furniture - Purchase,A40015,
http://opendatacommunities.org/id/london-borough-council/sutton,London Borough of Sutton,31/01/2022,10005903,550.00, L N S FURNITURE LTD,PURCHASES AFGHAN PROJECT,Environment Housing and Neighbourhoods,Furniture - Purchase,A40015,
http://opendatacommunities.org/id/london-borough-council/sutton,London Borough of Sutton,28/01/2022,10005903,"1,000.00", ISCC2G4O37297T IMM HEA,EQUIPMENT - ISCC2G4037297T,Peoples Services,Equipment And Materials Purchase,A40000,
http://opendatacommunities.org/id/london-borough-council/sutton,London Borough of Sutton,31/01/2022,10005903,-22.00, WWW.BRENTGOV.UK,BIRTH CERT REFUND,Peoples Services,Equipment And Materials Purchase,A40000,
http://opendatacommunities.org/id/london-borough-council/sutton,London Borough of Sutton,26/01/2022,10005903,22.00, WWW.BRENTGOV.UK,BRENT BIRTH CERTIFICATE,Peoples Services,Equipment And Materials Purchase,A40000,
http://opendatacommunities.org/id/london-borough-council/sutton,London Borough of Sutton,14/02/2022,10005903,25.00, GEN REGISTER OFFICE,BIRTH CERTIFICATE (REFUND),Peoples Services,PAT Testing,A40005,
http://opendatacommunities.org/id/london-borough-council/sutton,London Borough of Sutton,03/02/2022,10005903,"1,080.00", HIGHSTREETVOUCHERS,VOUCHERS FOR LEAVING CARE YOUNG PEOPLE,Peoples Services,Miscellaneous Expenses,A49000,
http://opendatacommunities.org/id/london-borough-council/sutton,London Borough of Sutton,02/02/2022,10005903,24.50, SAINSBURYS S/MKTS,GROCERIES,Peoples Services,Miscellaneous Expenses,A49000,
http://opendatacommunities.org/id/london-borough-council/sutton,London Borough of Sutton,04/02/2022,10005903,28.35, MINICABIT,TRAVEL REQUIRED FOR LEAVING CARE CHILD,Peoples Services,C.C.A Travel & Subsistance,A61010,
http://opendatacommunities.org/id/london-borough-council/sutton,London Borough of Sutton,11/02/2022,10005903,34.00, DVLA DRIVER ONLINE,PROVISIONAL DRIVERS LICENCE FOR YP PAYMENT,Peoples Services,Client Care/Assistance,A61011,
http://opendatacommunities.org/id/london-borough-council/sutton,London Borough of Sutton,17/02/2022,10005903,10.10, POST OFFICE SELF SERVI,SELF SERVICE AT POST OFFICE FOR PASSPORT SEND OFF,Peoples Services,Client Care/Assistance,A61011,
http://opendatacommunities.org/id/london-borough-council/sutton,London Borough of Sutton,03/02/2022,10005903,-708.00, DFS TRADING LIMITED,DFS REFUND,Peoples Services,Set Up Costs - Children Leaving Care,A61021,
http://opendatacommunities.org/id/london-borough-council/sutton,London Borough of Sutton,29/01/2022,10005903,118.66, GAR HOTEL RES,HOTEL REQUIRED FOR SUPERVISED CONTACT,Peoples Services,Miscellaneous Expenses,A49000,
http://opendatacommunities.org/id/london-borough-council/sutton,London Borough of Sutton,01/02/2022,10005903,17.99, AMZNMKTPLACE,REQUESTED BY SOCIAL WORKER FOR A YOUNG PERSON (100%),Peoples Services,Miscellaneous Expenses,A49000,
http://opendatacommunities.org/id/london-borough-council/sutton,London Borough of Sutton,07/02/2022,10005903,89.63, TENPIN.CO.UK,YOUNG PERSON ACTIVITY FOR WILLOW RISE CHILDRENS,Peoples Services,Miscellaneous Expenses,A49000,
http://opendatacommunities.org/id/london-borough-council/sutton,London Borough of Sutton,26/01/2022,10005903,42.10, HOLLYWOOD BOWL,BOWLING,Peoples Services,Miscellaneous Expenses,A49000,
http://opendatacommunities.org/id/london-borough-council/sutton,London Borough of Sutton,18/02/2022,10005903,262.50, IKEA LTD SHOP ONLINE,ITEMS REQUIRED FOR YOUNG PERSON,Peoples Services,Miscellaneous Expenses,A49000,
http://opendatacommunities.org/id/london-borough-council/sutton,London Borough of Sutton,11/02/2022,10005903,"1,396.30", WELCOME BREAK,HOTEL REQUIRED FOR A YOUNG PERSON AND FAMILY,Peoples Services,Approved Lodgings,A61000,
http://opendatacommunities.org/id/london-borough-council/sutton,London Borough of Sutton,11/02/2022,10005903,"1,396.30", WELCOME BREAK,HOTEL REQUIRED FOR A YOUNG PERSON AND FAMILY,Peoples Services,Approved Lodgings,A61000,
http://opendatacommunities.org/id/london-borough-council/sutton,London Borough of Sutton,11/02/2022,10005903,19.98, HM HENNES  MAURITZ U,REQUIRED FOR A YOUNG PERSON AT THE QUAD,Peoples Services,C.C.A Travel & Subsistance,A61010,
http://opendatacommunities.org/id/london-borough-council/sutton,London Borough of Sutton,10/02/2022,10005903,99.66, MINICABIT,TAXI REQUIRED FOR A VISIT,Peoples Services,C.C.A Travel & Subsistance,A61010,
http://opendatacommunities.org/id/london-borough-council/sutton,London Borough of Sutton,07/02/2022,10005903,7.94, AMZNMKTPLACE,ITEM NEEDED FOR THE WILLOW RISE CHILDRENS HOME (100%),Peoples Services,Equipment And Materials Purchase,A40000,
http://opendatacommunities.org/id/london-borough-council/sutton,London Borough of Sutton,07/02/2022,10005903,7.94, AMZNMKTPLACE,ITEM NEEDED FOR THE WILLOW RISE CHILDRENS HOME (100%),Peoples Services,Equipment And Materials Purchase,A40000,
http://opendatacommunities.org/id/london-borough-council/sutton,London Borough of Sutton,26/01/2022,10005903,10.89, AMZNMKTPLACE AMAZON.CO,ITEM REQUIRED FOR SAFETY AT THE WILLOW RISE CHILDRENS HOME (100%),Peoples Services,Miscellaneous Expenses,A49000,
http://opendatacommunities.org/id/london-borough-council/sutton,London Borough of Sutton,26/01/2022,10005903,22.50, ARSENAL DIRECT,ACTIVITY FOR THE YOUNG PERSON AT WILLOW RISE CHILDRENS HOME,Peoples Services,Miscellaneous Expenses,A49000,
http://opendatacommunities.org/id/london-borough-council/sutton,London Borough of Sutton,26/01/2022,10005903,11.25, AMZNMKTPLACE,ITEM REQUIRED FOR SAFETY AT THE WILLOW RISE CHILDRENS HOME (65.26%),Peoples Services,Miscellaneous Expenses,A49000,
http://opendatacommunities.org/id/london-borough-council/sutton,London Borough of Sutton,26/01/2022,10005903,5.99, AMZNMKTPLACE,ITEMS REQUIRED FOR THE WILLOW RISE CHILDRENS HOME (34.74%),Peoples Services,Miscellaneous Expenses,A49000,
http://opendatacommunities.org/id/london-borough-council/sutton,London Borough of Sutton,11/02/2022,10005903,34.75, AMZNBUSINESS 2L6WX3PZ4,ITEM NEEDED FOR THE WILLOW RISE CHILDRENS HOME (100%),Peoples Services,Miscellaneous Expenses,A49000,
http://opendatacommunities.org/id/london-borough-council/sutton,London Borough of Sutton,30/01/2022,10005903,9.98, AMZNMKTPLACE,ITEM REQUIRED FOR SAFETY AT THE WILLOW RISE CHILDRENS HOME (100%),Peoples Services,Miscellaneous Expenses,A49000,
http://opendatacommunities.org/id/london-borough-council/sutton,London Borough of Sutton,31/01/2022,10005903,3.18, AMZNMKTPLACE,ITEM REQUIRED FOR THE YOUNG PERSON AT WILLOW RISE CHILDRENS HOME (100%),Peoples Services,Miscellaneous Expenses,A49000,
http://opendatacommunities.org/id/london-borough-council/sutton,London Borough of Sutton,31/01/2022,10005903,12.98, AMZNMKTPLACE,ITEMS NEEDED FOR WILLOW RISE CHILDRENS HOME (100%),Peoples Services,Miscellaneous Expenses,A49000,
http://opendatacommunities.org/id/london-borough-council/sutton,London Borough of Sutton,31/01/2022,10005903,16.95, AMZNMKTPLACE,ITEM REQUIRED FOR SAFETY AT THE WILLOW RISE CHILDRENS HOME (100%),Peoples Services,Miscellaneous Expenses,A49000,
http://opendatacommunities.org/id/london-borough-council/sutton,London Borough of Sutton,31/01/2022,10005903,29.98, AMZNMKTPLACE,ITEM NEEDED FOR THE WILLOW RISE CHILDRENS HOME (100%),Peoples Services,Miscellaneous Expenses,A49000,
http://opendatacommunities.org/id/london-borough-council/sutton,London Borough of Sutton,05/02/2022,10005903,66.51, ASDA GROCERIES ONLINE,FOOD SHOPPING REQUIRED FOR WILLOW RISE CHILDRENS HOME,Peoples Services,Miscellaneous Expenses,A49000,
http://opendatacommunities.org/id/london-borough-council/sutton,London Borough of Sutton,02/02/2022,10005903,4.40, AMZNMKTPLACE,ITEM REQUIRED FOR THE YOUNG PERSON AT WILLOW RISE CHILDRENS HOME (100%),Peoples Services,Miscellaneous Expenses,A49000,
http://opendatacommunities.org/id/london-borough-council/sutton,London Borough of Sutton,02/02/2022,10005903,16.67, JUMPIN FUN BURGESS HIL,ACTIVITY FOR A YOUNG PERSON AT WILLOW RISE CHILDRENS HOME,Peoples Services,Miscellaneous Expenses,A49000,
http://opendatacommunities.org/id/london-borough-council/sutton,London Borough of Sutton,26/01/2022,10005903,13.94, AMZNMKTPLACE AMAZON.CO,ITEM REQUIRED FOR SAFETY AT THE WILLOW RISE CHILDRENS HOME (100%),Peoples Services,Miscellaneous Expenses,A49000,
http://opendatacommunities.org/id/london-borough-council/sutton,London Borough of Sutton,15/02/2022,10005903,11.62, AIRTHRILL LONDON,YOUNG PERSON ACTIVITY FOR WILLOW RISE CHILDRENS HOME,Peoples Services,Miscellaneous Expenses,A49000,
http://opendatacommunities.org/id/london-borough-council/sutton,London Borough of Sutton,25/02/2022,10005903,51.46, ASDA GROCERIES ONLINE,ASDA FOOD SHOPPING FOR WILLOW RISE CHILDRENS HOME,Peoples Services,Miscellaneous Expenses,A49000,
http://opendatacommunities.org/id/london-borough-council/sutton,London Borough of Sutton,25/02/2022,10005903,-2.04, ASDA GROCERIES ONLINE,REFUND FOR ASDA SHOPPING FOR WILLOW RISE CHILDRENS HOME,Peoples Services,Miscellaneous Expenses,A49000,
http://opendatacommunities.org/id/london-borough-council/sutton,London Borough of Sutton,24/02/2022,10005903,8.54, AMZNMKTPLACE AMAZON.CO,ITEM NEEDED FOR THE WILLOW RISE CHILDRENS HOME (100%),Peoples Services,Miscellaneous Expenses,A49000,
http://opendatacommunities.org/id/london-borough-council/sutton,London Borough of Sutton,24/02/2022,10005903,34.16, NVLTY LIMITED,CLOTHING ITEMS FOR YOUNG PERSON AT WILLOW RISE CHILDRENS HOME,Peoples Services,Miscellaneous Expenses,A49000,
http://opendatacommunities.org/id/london-borough-council/sutton,London Borough of Sutton,16/02/2022,10005903,36.67, RIVER ISLAND 400,BIRTHDAY PRESENT FOR A LEAVING CARE YOUNG PERSON,Peoples Services,Miscellaneous Expenses,A49000,
http://opendatacommunities.org/id/london-borough-council/sutton,London Borough of Sutton,11/02/2022,10005903,91.67, JD SPORTS INTERNET,CLOTHING FOR THE YOUNG PERSON AT WILLOW RISE CHILDRENS HOME,Peoples Services,Miscellaneous Expenses,A49000,
http://opendatacommunities.org/id/london-borough-council/sutton,London Borough of Sutton,10/02/2022,10005903,12.50, TRANSPORT FOR LONDON,NEW OYSTER CARD FOR YOUNG PERSON AT WILLOW RISE CHILDRENS HOME,Peoples Services,Miscellaneous Expenses,A49000,
http://opendatacommunities.org/id/london-borough-council/sutton,London Borough of Sutton,10/02/2022,10005903,29.98, SPORTSDIRECT.COM,SPORTS DIRECT,Peoples Services,Miscellaneous Expenses,A49000,
http://opendatacommunities.org/id/london-borough-council/sutton,London Borough of Sutton,17/02/2022,10005903,159.90, ZOOM.US 888-799-9666,ZOOM ACCOUNT FOR TEAM MEETINGS,Peoples Services,Subscriptions,A47010,
http://opendatacommunities.org/id/london-borough-council/sutton,London Borough of Sutton,30/01/2022,10005903,159.90, ZOOM.US 888-799-9666,SUBSCRIPTION REQUIRED FOR THE TEAM,Peoples Services,Subscriptions,A47010,
http://opendatacommunities.org/id/london-borough-council/sutton,London Borough of Sutton,19/01/2022,10005903,-7.50, GEN REGISTER OFFICE,REFUND OF BIRTH CERT,Peoples Services,Equipment And Materials Purchase,A40000,
http://opendatacommunities.org/id/london-borough-council/sutton,London Borough of Sutton,15/02/2022,10005903,-20.95, SUTTON REGISTER OFFICE,REFUND BIRTH CERT FOR COURT PROCEEDINGS,Peoples Services,Equipment And Materials Purchase,A40000,
http://opendatacommunities.org/id/london-borough-council/sutton,London Borough of Sutton,14/02/2022,10005903,18.33, SUTTON REGISTER OFFICE,BIRTH CERT FOR COURT PROCEEDINGS,Peoples Services,Equipment And Materials Purchase,A40000,
http://opendatacommunities.org/id/london-borough-council/sutton,London Borough of Sutton,08/02/2022,10005903,381.00, HM PASSPORT OFFICE,PASSPORT OFFICE FAST TRACK PAYMENT,Peoples Services,Equipment And Materials Purchase,A40000,
http://opendatacommunities.org/id/london-borough-council/sutton,London Borough of Sutton,08/02/2022,10005903,81.58, TRAVELODGE,TRAVELODGE,Peoples Services,Client Care/Assistance,A61011,
http://opendatacommunities.org/id/london-borough-council/sutton,London Borough of Sutton,18/02/2022,10005903,24.75, WANDSWORTH COUNCIL,BIRTH CERTIFICATE PAYMENT,Peoples Services,Equipment And Materials Purchase,A40000,
http://opendatacommunities.org/id/london-borough-council/sutton,London Borough of Sutton,22/02/2022,10005903,29.00, TESCO STORES 5999,TESCO FOOD SHOP PAYMENT,Peoples Services,Equipment And Materials Purchase,A40000,
http://opendatacommunities.org/id/london-borough-council/sutton,London Borough of Sutton,27/01/2022,10005903,49.99, TESCO ONLINE,TESCO PHONE PAYMENT,Peoples Services,Equipment And Materials Purchase,A40000,
http://opendatacommunities.org/id/london-borough-council/sutton,London Borough of Sutton,26/01/2022,10005903,24.50, WWW.BRENTGOV.UK,BIRTH CERTIFICATE,Peoples Services,Equipment And Materials Purchase,A40000,
http://opendatacommunities.org/id/london-borough-council/sutton,London Borough of Sutton,14/02/2022,10005903,30.00, LB CROYDON,BIRTH CERT FOR COURT PROCEEDINGS,Peoples Services,Equipment And Materials Purchase,A40000,
http://opendatacommunities.org/id/london-borough-council/sutton,London Borough of Sutton,24/02/2022,10005903,3.40, AMZNBUSINESS 2R8C055W4,"SPLIT - THE CHEEKY PANDA - BAMBOO FACIAL TISSUES | PACK OF 80 TISSUES (3-PLY) | FLAT BOX, HYPOALLERGENIC, PLASTIC-FREE, ECO-FRIENDLY, SUPER SOFT, STRONG & SUS (100%)",Peoples Services,Miscellaneous Expenses,A49000,
http://opendatacommunities.org/id/london-borough-council/sutton,London Borough of Sutton,24/02/2022,10005903,44.92, AMZNBUSINESS 2R5G505Q4,SPLIT - EUROPA 120 PAGE WIRE RULED NOTEMAKER - ASSORTED COLOUR (PACK OF 10) (100%),Peoples Services,Miscellaneous Expenses,A49000,
http://opendatacommunities.org/id/london-borough-council/sutton,London Borough of Sutton,24/02/2022,10005903,5.76, AMZNBUSINESS 2R2CH45Y4,SPLIT - AMAZON BASICS AA 1.5 VOLT PERFORMANCE ALKALINE BATTERIES - PACK OF 20 (APPEARANCE MAY VARY) (39.59%),Peoples Services,Miscellaneous Expenses,A49000,
http://opendatacommunities.org/id/london-borough-council/sutton,London Borough of Sutton,24/02/2022,10005903,8.79, AMZNBUSINESS 2R2CH45Y4,"SPLIT - BIC BALLPOINT PENS, 'CRISTAL ORIGINAL' BLACK PENS IDEAL FOR SCHOOL, MEDIUM POINT (1.0MM), PACK OF 50 (60.41%)",Peoples Services,Miscellaneous Expenses,A49000,
http://opendatacommunities.org/id/london-borough-council/sutton,London Borough of Sutton,27/01/2022,10005903,31.75, PREMIER CARS,TAXI REQUIRED FOR SUPERVISED CONTACT,Peoples Services,C.C.A Travel & Subsistance,A61010,
http://opendatacommunities.org/id/london-borough-council/sutton,London Borough of Sutton,27/01/2022,10005903,32.17, PREMIER CARS,TAXI REQUIRED FOR SUPERVISED CONTACT,Peoples Services,C.C.A Travel & Subsistance,A61010,
http://opendatacommunities.org/id/london-borough-council/sutton,London Borough of Sutton,08/02/2022,10005903,16.33, SANDWICH CARS,TRANSPORT NEEDED,Peoples Services,C.C.A Travel & Subsistance,A61010,
http://opendatacommunities.org/id/london-borough-council/sutton,London Borough of Sutton,03/02/2022,10005903,"3,199.00", C2E807000779F UKVI,C2E807000779F UKVI - G03180,Peoples Services,Recruitment Expenses,A15026,
http://opendatacommunities.org/id/london-borough-council/sutton,London Borough of Sutton,10/02/2022,10005903,"3,199.00", C2E807700781P UKVI,C2E807700781P UKVI - G03180,Peoples Services,Advertising - Staff,A15027,
http://opendatacommunities.org/id/london-borough-council/sutton,London Borough of Sutton,22/02/2022,10005903,"1,938.22", UKVI,"2,633.02 YOUR IMMIGRATION HEALTH SURCHARGE PAYMENT.PDF",Peoples Services,Approved Workers,A61001,
http://opendatacommunities.org/id/london-borough-council/sutton,London Borough of Sutton,21/02/2022,10005903,0.14, IMM HEALTH SURCHAR,YOUR IMMIGRATION HEALTH SURCHARGE PAYMENT.PDF,Peoples Services,Approved Workers,A61001,
http://opendatacommunities.org/id/london-borough-council/sutton,London Borough of Sutton,21/02/2022,10005903,481.17, UKVI,653.00 USD APPLICATION COMPLETE 'REDACTED - PERSONAL DATA' COST CODE - G03180 ACCOUNT CODE - A61011,Peoples Services,Approved Workers,A61001,
http://opendatacommunities.org/id/london-borough-council/sutton,London Borough of Sutton,21/02/2022,10005903,"1,940.19", IMM HEALTH SURCHAR,"2,633.02 YOUR IMMIGRATION HEALTH SURCHARGE PAYMENT.PDF",Peoples Services,Approved Workers,A61001,
http://opendatacommunities.org/id/london-borough-council/sutton,London Borough of Sutton,22/02/2022,10005903,13.23, UKVI,3199.00 - RECEIPT FOR C2E807000779F - COST CODE - G03180 ACCOUNT CODE - A61011.PDF,Peoples Services,Client Care/Assistance,A61011,
http://opendatacommunities.org/id/london-borough-council/sutton,London Borough of Sutton,23/02/2022,10005903,13.30, IMM HEALTH SURCHAR,3199.00 - RECEIPT FOR C2E807000847E COST CODE - G03180 ACCOUNT CODE - A61011.PDF,Peoples Services,Client Care/Assistance,A61011,
http://opendatacommunities.org/id/london-borough-council/sutton,London Borough of Sutton,23/02/2022,10005903,53.30, IMM HEALTH SURCHAR,3199.00 - RECEIPT FOR 2E807700781P COST CODE - G03180 ACCOUNT CODE - A61011.PNG,Peoples Services,Client Care/Assistance,A61011,
http://opendatacommunities.org/id/london-borough-council/sutton,London Borough of Sutton,26/02/2022,10005903,62.51, FACEBK  B9ZSPATG32,FACEBOOK ADS FOR FOSTERING RECRUITMENT,Peoples Services,Recruitment Expenses,A15026,
http://opendatacommunities.org/id/london-borough-council/sutton,London Borough of Sutton,19/02/2022,10005903,70.00, FACEBK  WV7Y2A3H32,FACEBOOK ADS FOR FOSTERING RECRUITMENT,Peoples Services,Recruitment Expenses,A15026,
http://opendatacommunities.org/id/london-borough-council/sutton,London Borough of Sutton,03/02/2022,10005903,70.00, FACEBK  QT33CA7H32,FACEBOOK ADS FOR FOSTERING RECRUITMENT,Peoples Services,Recruitment Expenses,A15026,
http://opendatacommunities.org/id/london-borough-council/sutton,London Borough of Sutton,26/01/2022,10005903,27.49, FACEBK  2P33SAFH32,FACEBOOK ADS FOR FOSTERING RECRUITMENT,Peoples Services,Recruitment Expenses,A15026,
http://opendatacommunities.org/id/london-borough-council/sutton,London Borough of Sutton,08/02/2022,10005903,20.48, WWW.PHYSIOROOM.COM,CUSHION PAYMENT,Peoples Services,Equipment,A61013,
http://opendatacommunities.org/id/london-borough-council/sutton,London Borough of Sutton,11/02/2022,10005903,15.00, MARKS&SPENCER PLC,M&S 15 E-VOUCHER FOR SERVICE USER REQUESTED BY SENSORY TEAM,Peoples Services,Staff Development And Training,A15022,
http://opendatacommunities.org/id/london-borough-council/sutton,London Borough of Sutton,02/02/2022,10005903,931.00, S.C.T.S,SOCIAL CARE TRAINING SOLUTIONS X4 COURSES,Peoples Services,Staff Development And Training,A15022,
http://opendatacommunities.org/id/london-borough-council/sutton,London Borough of Sutton,02/02/2022,10005903,931.00, S.C.T.S,SOCIAL CARE TRAINING SOLUTIONS X4 COURSES,Peoples Services,Staff Development And Training,A15022,
http://opendatacommunities.org/id/london-borough-council/sutton,London Borough of Sutton,11/02/2022,10005903,63.33, PREMIER INN,HOTEL STAY REQUIRED FOR A YOUNG PERSON WITH GUARDIAN FOR CONTACT,Peoples Services,Client Care/Assistance,A61011,
http://opendatacommunities.org/id/london-borough-council/sutton,London Borough of Sutton,10/02/2022,10005903,211.67, PREMIER INN,HOTEL REQUIRED FOR A CONTACT,Peoples Services,Client Care/Assistance,A61011,
http://opendatacommunities.org/id/london-borough-council/sutton,London Borough of Sutton,31/01/2022,10005903,799.90, LINKEDIN-727 6401083,RECEIPT _ LINKEDIN - 'REDACTED - PERSONAL DATA',Peoples Services,Subscriptions,A47010,
http://opendatacommunities.org/id/london-borough-council/sutton,London Borough of Sutton,03/02/2022,10005903,"3,199.00", C2E807000847E UKVI,IMMIGRATION PASSPORT CONTROL C2E807000847E.,Peoples Services,Recruitment Expenses,A15026,
http://opendatacommunities.org/id/london-borough-council/sutton,London Borough of Sutton,03/02/2022,10005903,"3,199.00", C2E807000831N UKVI,IMMIGRATION PASSPORT CONTROL C2E807000831N,Peoples Services,Recruitment Expenses,A15026,
http://opendatacommunities.org/id/london-borough-council/sutton,London Borough of Sutton,21/02/2022,10005903,481.17, UKVI,653.00 USD APPLICATION COMPLETE.PDF  G03830 ACCOUNT CODE - A61011,Peoples Services,Approved Workers,A61001,
http://opendatacommunities.org/id/london-borough-council/sutton,London Borough of Sutton,21/02/2022,10005903,"1,940.19", IMM HEALTH SURCHAR,YOUR IMMIGRATION HEALTH SURCHARGE PAYMENT.PDF,Peoples Services,Approved Workers,A61001,
http://opendatacommunities.org/id/london-borough-council/sutton,London Borough of Sutton,22/02/2022,10005903,239.98, UKVI,326.00 USD APPLICATION COMPLETE R.PDF,Peoples Services,Approved Workers,A61001,
http://opendatacommunities.org/id/london-borough-council/sutton,London Borough of Sutton,22/02/2022,10005903,13.23, UKVI,3199.00 - RECEIPT FOR C2E807000811O UKVI COST CODE - G03830 ACCOUNT CODE - A61011.PDF,Peoples Services,Client Care/Assistance,A61011,
http://opendatacommunities.org/id/london-borough-council/sutton,London Borough of Sutton,16/02/2022,10005903,522.00, PREMIER INN,HOTEL STAY,Peoples Services,Client Care/Assistance,A61011,
http://opendatacommunities.org/id/london-borough-council/sutton,London Borough of Sutton,11/02/2022,10005903,577.50, DIAMOND LIFE LTD,HOTEL STAY FOR A CONTACT,Peoples Services,Client Care/Assistance,A61011,
http://opendatacommunities.org/id/london-borough-council/sutton,London Borough of Sutton,03/02/2022,10005903,358.50, PREMIER INN,PREMIER INN PAYMENT,Peoples Services,Client Care/Assistance,A61011,
http://opendatacommunities.org/id/london-borough-council/sutton,London Borough of Sutton,11/02/2022,10005903,377.00, PREMIER INN,HOTEL PREMIER INN,Peoples Services,Client Care/Assistance,A61011,
http://opendatacommunities.org/id/london-borough-council/sutton,London Borough of Sutton,23/02/2022,10005903,6.60, IMM HEALTH SURCHAR,"3199.00 - RECEIPT FOR ORDER C2E807000831N 3,199 - COST CODE - G03830 ACCOUNT CODE - A61011PDF.PDF",Peoples Services,Client Care/Assistance,A61011,
http://opendatacommunities.org/id/london-borough-council/sutton,London Borough of Sutton,07/02/2022,10005903,181.00, EASTWOOD HALL,HOTEL FOR CHILD/PARENT KNOWN TO GREEN WEST LOCALITY - CHILDRENS SOCIAL CARE,Peoples Services,Client Care/Assistance,A61011,
http://opendatacommunities.org/id/london-borough-council/sutton,London Borough of Sutton,03/02/2022,10005903,"3,199.00", C2E807000786D UKVI,C2E807000786D UKVI - G03840,Peoples Services,Advertising - Staff,A15027,
http://opendatacommunities.org/id/london-borough-council/sutton,London Borough of Sutton,25/02/2022,10005903,"1,992.70", IMM HEALTH SURCHAR,VISA APPLICATION COSTS,Peoples Services,Equipment And Materials Purchase,A40000,
http://opendatacommunities.org/id/london-borough-council/sutton,London Borough of Sutton,28/02/2022,10005903,54.80, UKVI,FEES FOR $657'REDACTED - PERSONAL DATA',Peoples Services,Approved Workers,A61001,
http://opendatacommunities.org/id/london-borough-council/sutton,London Borough of Sutton,22/02/2022,10005903,483.63, UKVI,657 'REDACTED - PERSONAL DATA' APPLICATION COMPLETE.PDF,Peoples Services,Approved Workers,A61001,
http://opendatacommunities.org/id/london-borough-council/sutton,London Borough of Sutton,22/02/2022,10005903,53.36, UKVI,"2,633.02 YOUR IMMIGRATION HEALTH SURCHARGE PAYMENT.PDF",Peoples Services,Approved Workers,A61001,
http://opendatacommunities.org/id/london-borough-council/sutton,London Borough of Sutton,22/02/2022,10005903,53.36, UKVI,3199.00 - RECEIPT FOR ORDER C2E807000786D COST CODE - G03840 ACCOUNT CODE - A61011.PDF,Peoples Services,Approved Workers,A61001,
http://opendatacommunities.org/id/london-borough-council/sutton,London Borough of Sutton,07/02/2022,10005903,"1,441.62", HOTEL AT BOOKING.COM,BOOKING NEEDED FOR HOTEL,Peoples Services,Client Care/Assistance,A61011,
http://opendatacommunities.org/id/london-borough-council/sutton,London Borough of Sutton,18/02/2022,10005903,120.48, WWW.THERANGE.CO.UK,COT PAYMENT,Peoples Services,Client Care/Assistance,A61011,
http://opendatacommunities.org/id/london-borough-council/sutton,London Borough of Sutton,03/02/2022,10005903,"3,199.00", C2E807000811O UKVI,IMMIGRATION PASSPORT CONTROL  C2E807000786D,Peoples Services,Recruitment Expenses,A15026,
http://opendatacommunities.org/id/london-borough-council/sutton,London Borough of Sutton,09/02/2022,10005903,39.54, ARGOS LTD,ITEM REQUIRED FOR CLIENT,Peoples Services,Client Care/Assistance,A61011,
http://opendatacommunities.org/id/london-borough-council/sutton,London Borough of Sutton,09/02/2022,10005903,61.25, ARGOS LTD,ITEM REQUIRED FOR CLIENT,Peoples Services,Client Care/Assistance,A61011,
http://opendatacommunities.org/id/london-borough-council/sutton,London Borough of Sutton,09/02/2022,10005903,15.83, ARGOS LTD,ITEM REQUIRED FOR CLIENT,Peoples Services,Client Care/Assistance,A61011,
http://opendatacommunities.org/id/london-borough-council/sutton,London Borough of Sutton,01/02/2022,10005903,80.00, ACCESS SUTTON,ACCESS SELF STORAGE,Peoples Services,Miscellaneous Expenses,A49000,
http://opendatacommunities.org/id/london-borough-council/sutton,London Borough of Sutton,01/02/2022,10005903,89.03, STORAGEMART UK A-5098B,STORAGE FOR A CLIENT,Peoples Services,Storage And Archiving Services,A44085,
http://opendatacommunities.org/id/london-borough-council/sutton,London Borough of Sutton,17/02/2022,10005903,211.15, ASDA STORES LTD,EMERGENCY FOOD VOUCHERS FOR START CLIENTS,Peoples Services,Miscellaneous Expenses,A49000,
http://opendatacommunities.org/id/london-borough-council/sutton,London Borough of Sutton,17/02/2022,10005903,211.87, HIGHSTREETVOUCHERS,EMERGENCY FOOD VOUCHERS FOR START CLIENTS,Peoples Services,Miscellaneous Expenses,A49000,
http://opendatacommunities.org/id/london-borough-council/sutton,London Borough of Sutton,11/02/2022,10005903,43.17, CS MORRISONS GIFT CARD,EMERGENCY FOOD VOUCHERS FOR START CLIENTS,Peoples Services,Miscellaneous Expenses,A49000,
http://opendatacommunities.org/id/london-borough-council/sutton,London Borough of Sutton,10/02/2022,10005903,44.48, ASDA STORES LTD,EMERGENCY FOOD VOUCHERS FOR START CLIENTS,Peoples Services,Miscellaneous Expenses,A49000,
http://opendatacommunities.org/id/london-borough-council/sutton,London Borough of Sutton,10/02/2022,10005903,41.67, HIGHSTREETVOUCHERS,EMERGENCY FOOD VOUCHERS FOR START CLIENTS,Peoples Services,Miscellaneous Expenses,A49000,
http://opendatacommunities.org/id/london-borough-council/sutton,London Borough of Sutton,18/02/2022,10005903,209.83, CS MORRISONS GIFT CARD,EMERGENCY FOOD VOUCHERS FOR START CLIENTS,Peoples Services,Miscellaneous Expenses,A49000,
http://opendatacommunities.org/id/london-borough-council/sutton,London Borough of Sutton,14/02/2022,10005903,45.00, ALLIUM,FUNERALWREATH,Peoples Services,Funeral Expenses,A44220,
http://opendatacommunities.org/id/london-borough-council/sutton,London Borough of Sutton,31/01/2022,10005903,139.00, SHUTTERSTOCK IRELAND L,PROGRAMME REQUIRED TO DO PROMOTIONAL WORK,Peoples Services,Miscellaneous Expenses,A49000,
http://opendatacommunities.org/id/london-borough-council/sutton,London Borough of Sutton,01/02/2022,10005903,295.00, WWW.PMGLTD.CO.UK,REDACTED - PERSONAL DATA'ADULT SOCIAL CARE FORUM CONFERENCE TWO DAYS,Peoples Services,Conference Expenses,A43075,
http://opendatacommunities.org/id/london-borough-council/sutton,London Borough of Sutton,24/02/2022,10005903,352.00, WWW.ADASS.ORG.UK,REDACTED - PERSONAL DATA'ATTENDING ADASS SPRING SEMINAR 28 - 29 APRIL 2022,Peoples Services,Conference Expenses,A43075,
http://opendatacommunities.org/id/london-borough-council/sutton,London Borough of Sutton,09/02/2022,10005903,49.79, HELLO VENTURES B.V.,PRINTING PAYMENT,Peoples Services,Other Supplies & Services,A44291,
http://opendatacommunities.org/id/london-borough-council/sutton,London Borough of Sutton,31/01/2022,10005903,29.16, SERENATAFLOWERS,INVESTITURE'REDACTED - PERSONAL DATA'I FLOWERS,Health and Wellbeing,Hospitality,A46020,
http://opendatacommunities.org/id/london-borough-council/sutton,London Borough of Sutton,03/02/2022,10005903,27.64, GOOGLE CLOUD EMEA LIMI,GOOGLE CLOUD EMEA 4064120831 JAN 21,Health and Wellbeing,Subscriptions,A47010,
http://opendatacommunities.org/id/london-borough-council/sutton,London Borough of Sutton,28/02/2022,10005903,73.88, MAILCHIMP,MAILCHIMP 73.88 280222,Health and Wellbeing,Publicity,A44266,
http://opendatacommunities.org/id/london-borough-council/sutton,London Borough of Sutton,14/02/2022,10005903,4.88, MAILCHIMP,BUFFER RECEIPT 110222 240USD$ - PART 2,Health and Wellbeing,Publicity,A44266,
http://opendatacommunities.org/id/london-borough-council/sutton,London Borough of Sutton,13/02/2022,10005903,100.00, AMAZON.CO.UK 2L0DH2HE4,SPLIT - AMAZON.CO.UK GIFT CARD FOR ANY AMOUNT IN A BLACK AND SILVER MINI ENVELOPE (100%),Health and Wellbeing,Publicity,A44266,
http://opendatacommunities.org/id/london-borough-council/sutton,London Borough of Sutton,11/02/2022,10005903,101.80, CS MORRISONS GIFT CARD,MORRISONS GIFTS CARD PRIZES 101.80 100222,Health and Wellbeing,Publicity,A44266,
http://opendatacommunities.org/id/london-borough-council/sutton,London Borough of Sutton,11/02/2022,10005903,177.49, ONE BUFFER PLAN,BUFFER RECEIPT 110222 240USD$  - PART 1,Health and Wellbeing,Publicity,A44266,
http://opendatacommunities.org/id/london-borough-council/sutton,London Borough of Sutton,08/02/2022,10005903,47.99, ADOBE STOCK,ADOBE 070222 47.99,Health and Wellbeing,Publicity,A44266,
http://opendatacommunities.org/id/london-borough-council/sutton,London Borough of Sutton,30/01/2022,10005903,66.35, MAILCHIMP,MAILCHIMP 300122 66.35,Health and Wellbeing,Publicity,A44266,
http://opendatacommunities.org/id/london-borough-council/sutton,London Borough of Sutton,26/01/2022,10005903,66.73, WWW.INSTANTPRINT.C,INSTANTPRINT POSTERS 70S ETC 80.08 260122,Health and Wellbeing,Publicity,A44266,
http://opendatacommunities.org/id/london-borough-council/sutton,London Borough of Sutton,09/02/2022,10005903,28.60, TOOLSTATION UK,CHISELS - TOOLSTATION ORDER QWW916490447,Health and Wellbeing,Equipment And Materials Purchase,A40000,
http://opendatacommunities.org/id/london-borough-council/sutton,London Borough of Sutton,27/01/2022,10005903,24.00, BPP LEARNING MEDIA LTD,AAT LEVEL 3 ADVANCED DIPLOMA IN ACCOOUNTING QUESTION BOOK,Health and Wellbeing,Books,A43050,
http://opendatacommunities.org/id/london-borough-council/sutton,London Borough of Sutton,11/02/2022,10005903,19.15, ASDA STORES,FAMILY LEARNING SUGARCRAFT,Health and Wellbeing,Equipment And Materials Purchase,A40000,
http://opendatacommunities.org/id/london-borough-council/sutton,London Borough of Sutton,23/02/2022,10005903,22.82, SAINSBURYS S/MKTS,COOKERY,Health and Wellbeing,Equipment And Materials Purchase,A40000,
http://opendatacommunities.org/id/london-borough-council/sutton,London Borough of Sutton,09/02/2022,10005903,15.52, SAINSBURYS S/MKTS,COOKERY,Health and Wellbeing,Equipment And Materials Purchase,A40000,
http://opendatacommunities.org/id/london-borough-council/sutton,London Borough of Sutton,07/02/2022,10005903,17.58, SAINSBURYS S/MKTS,COOKERY,Health and Wellbeing,Equipment And Materials Purchase,A40000,
http://opendatacommunities.org/id/london-borough-council/sutton,London Borough of Sutton,02/02/2022,10005903,17.49, SAINSBURYS S/MKTS,COOKERY,Health and Wellbeing,Equipment And Materials Purchase,A40000,
http://opendatacommunities.org/id/london-borough-council/sutton,London Borough of Sutton,31/01/2022,10005903,1.00, SAINSBURYS S/MKTS,COOKERY,Health and Wellbeing,Equipment And Materials Purchase,A40000,
http://opendatacommunities.org/id/london-borough-council/sutton,London Borough of Sutton,30/01/2022,10005903,16.00, ASDA STORES,COOKERY,Health and Wellbeing,Equipment And Materials Purchase,A40000,
http://opendatacommunities.org/id/london-borough-council/sutton,London Borough of Sutton,26/01/2022,10005903,20.40, SAINSBURYS S/MKTS,COOKERY,Health and Wellbeing,Equipment And Materials Purchase,A40000,
http://opendatacommunities.org/id/london-borough-council/sutton,London Borough of Sutton,30/01/2022,10005903,4.00, SUTTON HOME STORE,COOKERY,Health and Wellbeing,Equipment And Materials Purchase,A40000,
http://opendatacommunities.org/id/london-borough-council/sutton,London Borough of Sutton,03/02/2022,10005903,4.99, AMAZON.CO.UK XM9QI1CD5,SPLIT - ENGLISH FOR EVERYONE PRACTICE BOOK LEVEL 1 BEGINNER: A COMPLETE SELF-STUDY PROGRAMME (100%),Peoples Services,LAC - Education,A44280,
http://opendatacommunities.org/id/london-borough-council/sutton,London Borough of Sutton,04/02/2022,10005903,22.99, AMZNMKTPLACE,"SPLIT - SHIFTY MCGIFTY AND SLIPPERY SAM COLLECTION 4 BOOKS SET BY TRACEY CORDEROY (JINGLE BELLS, THE SPOOKY SCHOOL, UP UP AND AWAY, THE ALIENS ARE COMING) (100%)",Peoples Services,LAC - Education,A44280,
http://opendatacommunities.org/id/london-borough-council/sutton,London Borough of Sutton,04/02/2022,10005903,3.26, AMZNMKTPLACE,FOREIGN EXCHANGE FEE APPLIED FOR US PURCHASE,Peoples Services,LAC - Education,A44280,
http://opendatacommunities.org/id/london-borough-council/sutton,London Borough of Sutton,24/02/2022,10005903,11.87, AMZNMKTPLACE AMAZON.CO,"SPLIT - ARTEZA GOUACHE PAINT, 24 COLOURS, 12ML TUBES, WATER-BASED PAINT FOR CANVAS AND PAPER, ART SUPPLIES FOR PROFESSIONALS, STUDENTS, AND KIDS (30.25%)",Peoples Services,LAC - Education,A44280,
http://opendatacommunities.org/id/london-borough-council/sutton,London Borough of Sutton,24/02/2022,10005903,80.82, AMZNMKTPLACE AMAZON.CO,"SPLIT - FENGDA AIRBRUSH KIT WITH COMPRESSOR SET FD-186K WITH COMPRESSOR FD-186, AIRBRUSH BD-130 AND ACCESSORIES (30.64%)",Peoples Services,LAC - Education,A44280,
http://opendatacommunities.org/id/london-borough-council/sutton,London Borough of Sutton,24/02/2022,10005903,52.48, AMZNMKTPLACE AMAZON.CO,SPLIT - HUION A3 LED LIGHT PAD (19.9%),Peoples Services,LAC - Education,A44280,
http://opendatacommunities.org/id/london-borough-council/sutton,London Borough of Sutton,24/02/2022,10005903,9.71, AMZNMKTPLACE AMAZON.CO,"SPLIT - WINSOR & NEWTON PROMARKER, SKIN TONES 1, SET OF 6 ALCOHOL BASED DUAL TIP MARKERS FOR ARTISTS (100%)",Peoples Services,LAC - Education,A44280,
http://opendatacommunities.org/id/london-borough-council/sutton,London Borough of Sutton,24/02/2022,10005903,23.23, AMZNMKTPLACE AMAZON.CO,SPLIT - COPIC MULTILINER SET (PACK OF 8) (100%),Peoples Services,LAC - Education,A44280,
http://opendatacommunities.org/id/london-borough-council/sutton,London Borough of Sutton,24/02/2022,10005903,16.63, AMZNMKTPLACE AMAZON.CO,SPLIT - FABER-CASTELL APOLLO 0.5MM DARK BLUE MECHANICAL PENCIL - BOX OF 5 232503 (30.68%),Peoples Services,LAC - Education,A44280,
http://opendatacommunities.org/id/london-borough-council/sutton,London Borough of Sutton,24/02/2022,10005903,4.50, AMZNMKTPLACE AMAZON.CO,"SPLIT - PEBEO 650315 75 ML BRUSH CLEANER, TRANSPARENT (7.95%)",Peoples Services,LAC - Education,A44280,
http://opendatacommunities.org/id/london-borough-council/sutton,London Borough of Sutton,24/02/2022,10005903,-0.35, AMZNMKTPLACE AMAZON.CO,BALANCING ENTRY AMOUNT (-1.86%),Peoples Services,LAC - Education,A44280,
http://opendatacommunities.org/id/london-borough-council/sutton,London Borough of Sutton,24/02/2022,10005903,130.45, AMZNMKTPLACE AMAZON.CO,"SPLIT - WINSOR & NEWTON 290152 PROMARKER, SUPERBIG BOX, EXTENDED COLLECTION, ALCOHOL BASED DUAL TIP MARKERS FOR ARTISTS, SET OF 96 (49.46%)",Peoples Services,LAC - Education,A44280,
http://opendatacommunities.org/id/london-borough-council/sutton,London Borough of Sutton,24/02/2022,10005903,38.07, AMZNMKTPLACE AMAZON.CO,"SPLIT - ARTEZA ACRYLIC PAINT SET, 60 COLOURS, 22 ML TUBES, HIGH VISCOSITY WATER-BASED PAINT, ART SUPPLIES FOR PAINTING PAPER, CANVAS, WOOD AND FABRIC, AND DIY (70.96%)",Peoples Services,LAC - Education,A44280,
http://opendatacommunities.org/id/london-borough-council/sutton,London Borough of Sutton,24/02/2022,10005903,-1.06, AMZNMKTPLACE AMAZON.CO,BALANCING ENTRY AMOUNT (-4.94%),Peoples Services,LAC - Education,A44280,
http://opendatacommunities.org/id/london-borough-council/sutton,London Borough of Sutton,24/02/2022,10005903,5.39, AMAZON.CO.UK 2R1466VZ4,SPLIT - THE CHILDREN'S BOOK OF MAKING FRIENDS (STAR REWARDS) (STAR REWARDS - LIFE SKILLS FOR KIDS) (100%),Peoples Services,LAC - Education,A44280,
http://opendatacommunities.org/id/london-borough-council/sutton,London Borough of Sutton,03/02/2022,10005903,118.60, REV.COM,DICTATION OF TRAINING VIDEOS FOR UPSCALE REPRODUCTION,Peoples Services,LAC - Education,A44280,
http://opendatacommunities.org/id/london-borough-council/sutton,London Borough of Sutton,03/02/2022,10005903,8.19, AMAZON.CO.UK HV3FI67G5,SPLIT - STORY OF THE TITANIC (DK HISTORY) (100%),Peoples Services,LAC - Education,A44280,
http://opendatacommunities.org/id/london-borough-council/sutton,London Borough of Sutton,03/02/2022,10005903,4.00, AMAZON.CO.UK F401C2LJ5,"SPLIT - HARRY POTTER AND THE PRISONER OF AZKABAN: 3/7 (HARRY POTTER, 3) (57.14%)",Peoples Services,LAC - Education,A44280,
http://opendatacommunities.org/id/london-borough-council/sutton,London Borough of Sutton,03/02/2022,10005903,4.00, AMAZON.CO.UK F401C2LJ5,"SPLIT - HARRY POTTER AND THE GOBLET OF FIRE: 4/7 (HARRY POTTER, 4) (57.14%)",Peoples Services,LAC - Education,A44280,
http://opendatacommunities.org/id/london-borough-council/sutton,London Borough of Sutton,24/02/2022,10005903,20.82, AMZNMKTPLACE AMAZON.CO,"SPLIT - 48 HALF PAN WATERCOLOUR PAINT SET - PREMIUM ASSORTED VIBRANT COLOUR PAINTS - COMPACT & LIGHTWEIGHT PALETTE IN METAL CARRYING CASE, IDEAL TRAVEL SET FO (53.08%)",Peoples Services,LAC - Education,A44280,
http://opendatacommunities.org/id/london-borough-council/sutton,London Borough of Sutton,24/02/2022,10005903,6.54, AMZNMKTPLACE AMAZON.CO,SPLIT - WINSOR & NEWTON 5295015 FOUNDATION BRUSH SET (PACK OF 6) (16.67%),Peoples Services,LAC - Education,A44280,
http://opendatacommunities.org/id/london-borough-council/sutton,London Borough of Sutton,24/02/2022,10005903,8.23, AMZNMKTPLACE AMAZON.CO,"SPLIT - WHITE PAINT PEN, 6 PACK 0.7MM ACRYLIC WHITE PERMANENT MARKER WHITE PAINT PENS FOR WOOD ROCK PLASTIC LEATHER GLASS STONE METAL CANVAS CERAMIC MARKER EX (14.54%)",Peoples Services,LAC - Education,A44280,
http://opendatacommunities.org/id/london-borough-council/sutton,London Borough of Sutton,24/02/2022,10005903,9.58, AMZNMKTPLACE AMAZON.CO,SPLIT - WINSOR & NEWTON EXTRA SMOOTH BRISTOL BOARD GUMMED A4 PAD (16.93%),Peoples Services,LAC - Education,A44280,
http://opendatacommunities.org/id/london-borough-council/sutton,London Borough of Sutton,03/02/2022,10005903,12.39, AMAZON.CO.UK 168O32AI5,SPLIT - ENGLISH FOR EVERYONE ENGLISH VOCABULARY BUILDER (100%),Peoples Services,LAC - Education,A44280,
http://opendatacommunities.org/id/london-borough-council/sutton,London Borough of Sutton,03/02/2022,10005903,4.95, AMAZON.CO.UK V376Q6P25,SPLIT - KS3 MATHS STUDY GUIDE - HIGHER: PERFECT FOR CATCH-UP AND LEARNING AT HOME (100%),Peoples Services,LAC - Education,A44280,
http://opendatacommunities.org/id/london-borough-council/sutton,London Borough of Sutton,03/02/2022,10005903,7.89, AMAZON.CO.UK 8S48Q2LD5,"SPLIT - HOW TO PASS EXAMS: ACCELERATE YOUR LEARNING, MEMORIZE KEY FACTS, REVISE EFFECTIVELY (100%)",Peoples Services,LAC - Education,A44280,
http://opendatacommunities.org/id/london-borough-council/sutton,London Borough of Sutton,03/02/2022,10005903,12.45, AMZNMKTPLACE AMAZON.CO,SPLIT - HOLY QURAN 13 LINE A5 SIZE ARABIC ISLAMIC QURAN NO. 23M (100%),Peoples Services,LAC - Education,A44280,
http://opendatacommunities.org/id/london-borough-council/sutton,London Borough of Sutton,24/02/2022,10005903,14.25, AMAZON.CO.UK 2R7O87M84,SPLIT - THE GORMENGHAST TRILOGY (100%),Peoples Services,LAC - Education,A44280,
http://opendatacommunities.org/id/london-borough-council/sutton,London Borough of Sutton,25/02/2022,10005903,20.67, AMZNMKTPLACE AMAZON.CO,"SPLIT - FABER-CASTELL MANGA STARTER SET,BLACK,167152 (100%)",Peoples Services,LAC - Education,A44280,
http://opendatacommunities.org/id/london-borough-council/sutton,London Borough of Sutton,25/02/2022,10005903,8.66, AMZNMKTPLACE AMAZON.CO,"SPLIT - FABER-CASTELL SUPER POLYMER FINE LEADS 0.5 HB PACK OF 5, QUANTITY 5, 0.5HB, 60 MINEN (100%)",Peoples Services,LAC - Education,A44280,
http://opendatacommunities.org/id/london-borough-council/sutton,London Borough of Sutton,24/02/2022,10005903,37.49, AMZNMKTPLACE AMAZON.CO,SPLIT - POSCA PC-1M PAINT ART MARKER PENS - FABRIC GLASS METAL PEN - FULL RANGE SET OF ALL 21 COLOURS (100%),Peoples Services,LAC - Education,A44280,
http://opendatacommunities.org/id/london-borough-council/sutton,London Borough of Sutton,24/02/2022,10005903,4.12, AMZNMKTPLACE AMAZON.CO,"SPLIT - GRAF VON FABER-CASTELL INK CARTRIDGES, CARBON BLACK 6X, 141100 (100%)",Peoples Services,LAC - Education,A44280,
http://opendatacommunities.org/id/london-borough-council/sutton,London Borough of Sutton,25/02/2022,10005903,61.93, AMZNMKTPLACE AMAZON.CO,SPLIT - FABER-CASTELL E-MOTION FOUNTAIN PEN PARQUET BLACK (100%),Peoples Services,LAC - Education,A44280,
http://opendatacommunities.org/id/london-borough-council/sutton,London Borough of Sutton,24/02/2022,10005903,11.11, AMAZON.CO.UK 2R31195J4,SPLIT - YES I HAVE CHEER FEVER: DEAL. WITH. IT (100%),Peoples Services,LAC - Education,A44280,
http://opendatacommunities.org/id/london-borough-council/sutton,London Borough of Sutton,03/02/2022,10005903,-1.00, AMAZON.CO.UK F401C2LJ5,BALANCING ENTRY AMOUNT (-42.86%),Peoples Services,LAC - Education,A44280,
http://opendatacommunities.org/id/london-borough-council/sutton,London Borough of Sutton,24/02/2022,10005903,2.49, AMZNMKTPLACE AMAZON.CO,SPLIT - VALLEJO MODEL AIR 17ML THINNER (4.4%),Peoples Services,LAC - Education,A44280,
http://opendatacommunities.org/id/london-borough-council/sutton,London Borough of Sutton,03/02/2022,10005903,8.66, AMAZON.CO.UK 4Z5HJ0UZ5,"SPLIT - YOU ARE FANTASTIC!: SHORT STORIES FOR GIRLS ABOUT CONFIDENCE, FRIENDSHIP AND HAPPINESS! (PRESENT FOR GIRLS) (100%)",Peoples Services,LAC - Education,A44280,
http://opendatacommunities.org/id/london-borough-council/sutton,London Borough of Sutton,05/02/2022,10005903,6.75, AMZNMKTPLACE,SPLIT - DSC PUBLISHING COMMON WORD SPELLING DRY WIPE FLASH CARDS AND HIGH FREQUENCY WORDS SPELLING KIDS BOOKMARKS DYSLEXIA SPELLING AIDS FOR KEY STAGE 1 AND K (100%),Peoples Services,LAC - Education,A44280,
http://opendatacommunities.org/id/london-borough-council/sutton,London Borough of Sutton,04/02/2022,10005903,5.94, AMAZON.CO.UK P27S85Q75,SPLIT - DINOSAURS AND ALL THAT RUBBISH (100%),Peoples Services,LAC - Education,A44280,
http://opendatacommunities.org/id/london-borough-council/sutton,London Borough of Sutton,24/02/2022,10005903,14.75, AMZNMKTPLACE AMAZON.CO,"SPLIT - ARTEZA PREMIUM CANVAS PANELS 8X8 INCH, PACK OF 14, 100% COTTON, 12.3 OZ PRIMED, 7 OZ UNPRIMED, WHITE BLANK BOARDS ACID-FREE, FOR ACRYLIC & OIL PAINTIN (26.06%)",Peoples Services,LAC - Education,A44280,
http://opendatacommunities.org/id/london-borough-council/sutton,London Borough of Sutton,24/02/2022,10005903,17.40, AMZNMKTPLACE AMAZON.CO,SPLIT - MIX 6ROLLS HIGH-TEMP PINSTRIPE VINYL FINE LINE MASKING TAPE AUTOMOTIVE CAR PAINTING PAINTERS TAPE 2MM 2.5MM 3MM 4MM 5MM 6MM (30.74%),Peoples Services,LAC - Education,A44280,
http://opendatacommunities.org/id/london-borough-council/sutton,London Borough of Sutton,10/02/2022,10005903,5.82, AMAZON.CO.UK 2L0EF0EZ4,SPLIT - CURSIVE HANDWRITING WORKBOOK FOR ADULTS: LEARN CURSIVE WRITING FOR ADULTS (ADULT CURSIVE HANDWRITING WORKBOOK) (100%),Peoples Services,LAC - Education,A44280,
http://opendatacommunities.org/id/london-borough-council/sutton,London Borough of Sutton,10/02/2022,10005903,5.58, AMAZON.CO.UK 2L1MF7AK4,SPLIT - HELIX OXFORD COMPLETE STATIONERY SET IN 13.5 INCH PENCIL CASE (100%),Peoples Services,LAC - Education,A44280,
http://opendatacommunities.org/id/london-borough-council/sutton,London Borough of Sutton,03/02/2022,10005903,7.99, AMAZON.CO.UK M923B8GV5,SPLIT - HOW TO DRAW PEOPLE - ANATOMY FOR ARTISTS - THE ANATOMY SKETCHBOOK: ANATOMY DRAWING BOOK - HUMAN ANATOMY FOR ARTISTS - DRAWING ANATOMY - ANATOMY SKETCH (100%),Peoples Services,LAC - Education,A44280,
http://opendatacommunities.org/id/london-borough-council/sutton,London Borough of Sutton,03/02/2022,10005903,5.19, AMAZON.CO.UK K377F4Y35,"SPLIT - FRANKENSTEIN: OR, THE MODERN PROMETHEUS (100%)",Peoples Services,LAC - Education,A44280,
http://opendatacommunities.org/id/london-borough-council/sutton,London Borough of Sutton,03/02/2022,10005903,10.99, AMAZON.CO.UK JA2UR7SM5,SPLIT - THE OFFICIAL DVSA THEORY TEST FOR CAR DRIVERS (100%),Peoples Services,LAC - Education,A44280,
http://opendatacommunities.org/id/london-borough-council/sutton,London Borough of Sutton,24/02/2022,10005903,17.99, AMZNMKTPLACE AMAZON.CO,SPLIT - GALLAGHER GIRLS BOX SET COLLECTION BY ALLY CARTER - 6 BOOKS SET (100%),Peoples Services,LAC - Education,A44280,
http://opendatacommunities.org/id/london-borough-council/sutton,London Borough of Sutton,03/02/2022,10005903,5.75, AMAZON.CO.UK PY40O5NL5,SPLIT - THE BOY WHO GREW DRAGONS (THE BOY WHO GREW DRAGONS 1) (100%),Peoples Services,LAC - Education,A44280,
http://opendatacommunities.org/id/london-borough-council/sutton,London Borough of Sutton,03/02/2022,10005903,11.35, AMAZON.CO.UK TU52R1ZR5,SPLIT - ORFEIA: A MODERN FAIRYTALE NOVELLA FROM THE SUNDAY TIMES TOP-TEN BESTSELLING AUTHOR (100%),Peoples Services,LAC - Education,A44280,
http://opendatacommunities.org/id/london-borough-council/sutton,London Borough of Sutton,26/01/2022,10005903,216.66, AMAZON.CO.UK M23W09805,"SPLIT - ACER CHROMEBOOK 314 CB314-H - (INTEL CELERON N4020, 4GB, 64GB EMMC, 14 INCH FULL HD DISPLAY, GOOGLE CHROME OS, SILVER) (100%)",Peoples Services,LAC - Education,A44280,
